fUSD/lending_fUSD_20250426
["ID","MTS","AMOUNT","RATE_DAILY","PERIOD"]
[359072943,1745694638849,-400.0,0.00019593,2]
[359072945,1745694638860,-400.0,0.00019593,2]
[359072947,1745694638869,-400.0,0.00019593,2]
[359072949,1745694638880,-500.0,0.00019593,2]
[359072951,1745694638890,-400.0,0.00019593,2]
[359072953,1745694638901,-286.66529457,0.00019593,2]
[359072955,1745694638910,-1455.59,0.00019593,2]
[359072958,1745694638920,-400.0,0.00019593,2]
[359072959,1745694638930,-552.31,0.00019593,2]
[359072961,1745694638941,-400.0,0.00019593,2]
[359072963,1745694638951,-799.6,0.00019593,2]
[359072965,1745694638961,-400.0,0.00019593,2]
[359072967,1745694638970,-451.47,0.00019593,2]
[359072969,1745694638979,-400.0,0.00019593,2]
[359072971,1745694638988,-400.0,0.00019593,2]
[359072973,1745694638998,-725.72,0.00019593,2]
[359072975,1745694639007,-630.94,0.00019593,2]
[359072977,1745694639017,-500.0,0.00019593,2]
[359072979,1745694639026,-400.0,0.00019593,2]
[359072981,1745694639035,-400.0,0.00019593,2]
[359072983,1745694639045,-400.0,0.00019593,2]
[359072985,1745694639054,-400.0,0.00019593,2]
[359072987,1745694639065,-506.24,0.00019593,2]
[359072989,1745694639075,-400.0,0.00019593,2]
[359072991,1745694639084,-400.0,0.00019593,2]
[359072993,1745694639094,-595.0,0.00019593,2]
[359072995,1745694639104,-400.0,0.00019593,2]
[359072997,1745694639113,-400.0,0.00019593,2]
[359072998,1745694639123,-671.09,0.00019593,2]
[359073000,1745694639132,-400.0,0.00019593,2]
[359073002,1745694639142,-673.39,0.00019593,2]
[359073004,1745694639152,-500.0,0.00019593,2]
[359073006,1745694639161,-407.67,0.00019593,2]
[359073008,1745694639171,-414.23,0.00019593,2]
[359073010,1745694639180,-656.71,0.00019593,2]
[359073012,1745694639190,-400.0,0.00019593,2]
[359073014,1745694639200,-400.0,0.00019593,2]
[359073016,1745694639209,-250.0,0.00019593,2]
[359073018,1745694639219,-400.0,0.00019593,2]
[359073020,1745694639229,-400.0,0.00019593,2]
[359073022,1745694639242,-650.91,0.00019593,2]
[359073024,1745694639252,-715.45,0.00019593,2]
[359073026,1745694639261,-477.41,0.00019593,2]
[359073028,1745694639271,-400.0,0.00019593,2]
[359073030,1745694639281,-600.0,0.00019593,2]
[359073032,1745694639291,-529.89,0.00019593,2]
[359073034,1745694639301,-400.0,0.00019593,2]
[359073036,1745694639311,-500.0,0.00019593,2]
[359073038,1745694639321,-400.0,0.00019593,2]
[359073040,1745694639330,-400.0,0.00019593,2]
[359073042,1745694639340,-171.97957722,0.00019593,2]
[359073044,1745694639350,-400.0,0.00019593,2]
[359073046,1745694639360,-400.0,0.00019593,2]
[359073048,1745694639370,-400.0,0.00019593,2]
[359073050,1745694639379,-776.11,0.00019593,2]
[359073052,1745694639390,-400.0,0.00019593,2]
[359073054,1745694639400,-200.0,0.00019593,2]
[359073056,1745694639410,-400.0,0.00019593,2]
[359073058,1745694639419,-400.0,0.00019593,2]
[359073060,1745694639429,-200.0,0.00019593,2]
[359073062,1745694639438,-400.0,0.00019593,2]
[359073064,1745694639448,-400.0,0.00019593,2]
[359073066,1745694639458,-494.07,0.00019593,2]
[359073067,1745694639469,-400.0,0.00019593,2]
[359073068,1745694639479,-182.019342,0.00019593,2]
[359073069,1745694639488,-152.20623637,0.00019593,2]
[359073070,1745694639498,-563.79,0.00019593,2]
[359073071,1745694639508,-456.35,0.00019593,2]
[359073072,1745694639518,-500.0,0.00019593,2]
[359073073,1745694639527,-625.3,0.00019593,2]
[359073074,1745694639539,-400.0,0.00019593,2]
[359073075,1745694639549,-400.0,0.00019593,2]
[359073076,1745694639559,-400.0,0.00019593,2]
[359073077,1745694639569,-1221.39,0.00019593,2]
[359073078,1745694639579,-400.0,0.00019593,2]
[359073079,1745694639590,-9789.243246,0.00019593,2]
[359073080,1745694639600,-400.0,0.00019593,2]
[359073081,1745694639610,-400.0,0.00019593,2]
[359073082,1745694639619,-400.0,0.00019593,2]
[359073083,1745694639907,-716.69,0.00019593,2]
[359073084,1745694639917,-400.0,0.00019593,2]
[359073085,1745694639926,-400.0,0.00019593,2]
[359073087,1745694639936,-606.14,0.00019593,2]
[359073088,1745694639947,-400.0,0.00019593,2]
[359073089,1745694639958,-400.0,0.00019593,2]
[359073090,1745694639967,-1075.37,0.00019593,2]
[359073091,1745694639978,-1062.47,0.00019593,2]
[359073092,1745694639990,-400.0,0.00019593,2]
[359073093,1745694640001,-328.28419126,0.00019593,2]
[359073094,1745694640011,-400.0,0.00019593,2]
[359073095,1745694640020,-400.0,0.00019593,2]
[359073096,1745694640031,-400.0,0.00019593,2]
[359073097,1745694640043,-833.66,0.00019593,2]
[359073098,1745694640053,-191.742233,0.00019593,2]
[359073099,1745694640062,-400.0,0.00019593,2]
[359073100,1745694640071,-400.0,0.00019593,2]
[359073101,1745694640081,-400.0,0.00019593,2]
[359073102,1745694640091,-400.0,0.00019593,2]
[359073103,1745694640102,-400.0,0.00019593,2]
[359073104,1745694640113,-606.28,0.00019593,2]
[359073105,1745694640123,-409.26,0.00019593,2]
[359073106,1745694640133,-400.0,0.00019593,2]
[359073107,1745694640142,-534.21,0.00019593,2]
[359073108,1745694640152,-400.0,0.00019593,2]
[359073109,1745694640161,-400.0,0.00019593,2]
[359073110,1745694640170,-400.0,0.00019593,2]
[359073111,1745694640181,-500.0,0.00019593,2]
[359073113,1745694640192,-200.0,0.00019593,2]
[359073114,1745694640201,-400.0,0.00019593,2]
[359073115,1745694640211,-400.0,0.00019593,2]
[359073116,1745694640222,-400.0,0.00019593,2]
[359073117,1745694640235,-524.85,0.00019593,2]
[359073118,1745694640244,-400.0,0.00019593,2]
[359073119,1745694640253,-674.24,0.00019593,2]
[359073120,1745694640263,-400.0,0.00019593,2]
[359073121,1745694640273,-400.0,0.00019593,2]
[359073122,1745694640286,-882.58,0.00019593,2]
[359073123,1745694640297,-549.5,0.00019593,2]
[359073124,1745694640307,-400.0,0.00019593,2]
[359073125,1745694640317,-400.0,0.00019593,2]
[359073126,1745694640327,-400.0,0.00019593,2]
[359073127,1745694640336,-200.0,0.00019593,2]
[359073128,1745694640347,-200.0,0.00019593,2]
[359073129,1745694640357,-579.07,0.00019593,2]
[359073130,1745694640366,-508.21385033,0.00019593,2]
[359073131,1745694640376,-400.0,0.00019593,2]
[359073132,1745694640385,-400.0,0.00019593,2]
[359073133,1745694640395,-200.0,0.00019593,2]
[359073134,1745694640404,-400.0,0.00019593,2]
[359073135,1745694640414,-400.0,0.00019593,2]
[359073136,1745694640424,-429.74,0.00019593,2]
[359073137,1745694640434,-1108.57,0.00019593,2]
[359073138,1745694640444,-400.0,0.00019593,2]
[359073139,1745694640454,-803.05,0.00019593,2]
[359073140,1745694640463,-469.1,0.00019593,2]
[359073141,1745694640473,-400.0,0.00019593,2]
[359073142,1745694640484,-400.0,0.00019593,2]
[359073143,1745694640495,-400.0,0.00019593,2]
[359073144,1745694640505,-400.0,0.00019593,2]
[359073145,1745694640515,-400.0,0.00019593,2]
[359073146,1745694640524,-400.0,0.00019593,2]
[359073147,1745694640535,-738.74,0.00019593,2]
[359073148,1745694640545,-400.0,0.00019593,2]
[359073149,1745694640555,-400.0,0.00019593,2]
[359073150,1745694640564,-400.0,0.00019593,2]
[359073151,1745694640575,-546.89,0.00019593,2]
[359073152,1745694640584,-400.0,0.00019593,2]
[359073153,1745694640594,-712.95,0.00019593,2]
[359073154,1745694640604,-967.39,0.00019593,2]
[359073155,1745694640614,-1000.0,0.00019593,2]
[359073156,1745694640623,-500.0,0.00019593,2]
[359073157,1745694640632,-400.0,0.00019593,2]
[359073158,1745694640642,-400.0,0.00019593,2]
[359073159,1745694640651,-400.0,0.00019593,2]
[359073160,1745694640661,-400.0,0.00019593,2]
[359073161,1745694640671,-532.50164479,0.00019593,2]
[359073162,1745694640680,-400.0,0.00019593,2]
[359073163,1745694640690,-447.12,0.00019593,2]
[359073164,1745694640700,-400.0,0.00019593,2]
[359073165,1745694640710,-400.0,0.00019593,2]
[359073166,1745694640720,-400.0,0.00019593,2]
[359073167,1745694640730,-684.4,0.00019593,2]
[359073168,1745694640741,-400.0,0.00019593,2]
[359073169,1745694640751,-400.0,0.00019593,2]
[359073170,1745694640760,-400.0,0.00019593,2]
[359073171,1745694640770,-400.0,0.00019593,2]
[359073172,1745694640780,-526.5,0.00019593,2]
[359073173,1745694640789,-821.45,0.00019593,2]
[359073174,1745694640799,-400.0,0.00019593,2]
[359073175,1745694640809,-840.58,0.00019593,2]
[359073176,1745694640818,-650.23,0.00019593,2]
[359073177,1745694640828,-400.0,0.00019593,2]
[359073178,1745694640839,-400.0,0.00019593,2]
[359073179,1745694640849,-690.51,0.00019593,2]
[359073180,1745694640859,-400.0,0.00019593,2]
[359073181,1745694640869,-400.0,0.00019593,2]
[359073182,1745694640879,-400.0,0.00019593,2]
[359073184,1745694640889,-528.67,0.00019593,2]
[359073186,1745694640899,-119812.33,0.00019593,2]
[359073187,1745694640911,-400.0,0.00019593,2]
[359073188,1745694640921,-473.92,0.00019593,2]
[359073189,1745694640931,-400.0,0.00019593,2]
[359073191,1745694640941,-400.0,0.00019593,2]
[359073193,1745694640951,-400.0,0.00019593,2]
[359073195,1745694640960,-400.0,0.00019593,2]
[359073196,1745694640970,-494.71,0.00019593,2]
[359073197,1745694640980,-406.5,0.00019593,2]
[359073198,1745694640989,-400.0,0.00019593,2]
[359073199,1745694640998,-400.0,0.00019593,2]
[359073200,1745694641008,-400.0,0.00019593,2]
[359073201,1745694641018,-400.0,0.00019593,2]
[359073202,1745694641029,-777.36,0.00019593,2]
[359073203,1745694641039,-400.0,0.00019593,2]
[359073204,1745694641050,-400.0,0.00019593,2]
[359073205,1745694641060,-400.0,0.00019593,2]
[359073206,1745694641070,-400.0,0.00019593,2]
[359073207,1745694641080,-478.31,0.00019593,2]
[359073208,1745694641091,-400.0,0.00019593,2]
[359073209,1745694641102,-579.13,0.00019593,2]
[359073210,1745694641112,-400.0,0.00019593,2]
[359073211,1745694641121,-400.0,0.00019593,2]
[359073212,1745694641131,-751.44,0.00019593,2]
[359073213,1745694641141,-507.52583489,0.00019593,2]
[359073214,1745694641151,-480.24,0.00019593,2]
[359073215,1745694641161,-950.53,0.00019593,2]
[359073216,1745694641170,-400.0,0.00019593,2]
[359073217,1745694641179,-2728.02,0.00019593,2]
[359073218,1745694641188,-400.0,0.00019593,2]
[359073219,1745694641198,-400.0,0.00019593,2]
[359073220,1745694641207,-400.0,0.00019593,2]
[359073221,1745694641216,-400.0,0.00019593,2]
[359073222,1745694641226,-504.09126627,0.00019593,2]
[359073223,1745694641239,-400.0,0.00019593,2]
[359073224,1745694641249,-503.9,0.00019593,2]
[359073225,1745694641259,-400.0,0.00019593,2]
[359073226,1745694641269,-400.0,0.00019593,2]
[359073227,1745694641279,-500.0,0.00019593,2]
[359073228,1745694641289,-400.0,0.00019593,2]
[359073229,1745694641299,-400.0,0.00019593,2]
[359073230,1745694641310,-400.0,0.00019593,2]
[359073231,1745694641321,-400.0,0.00019593,2]
[359073232,1745694641332,-1117.42,0.00019593,2]
[359073233,1745694641342,-637.24,0.00019593,2]
[359073234,1745694641353,-400.0,0.00019593,2]
[359073235,1745694641363,-400.0,0.00019593,2]
[359073236,1745694641373,-400.0,0.00019593,2]
[359073237,1745694641385,-509.68329933,0.00019593,2]
[359073238,1745694641394,-588.39,0.00019593,2]
[359073239,1745694641404,-201.8511865,0.00019593,2]
[359073240,1745694641413,-400.0,0.00019593,2]
[359073241,1745694641423,-625.99,0.00019593,2]
[359073242,1745694641433,-580.94,0.00019593,2]
[359073243,1745694641443,-400.0,0.00019593,2]
[359073244,1745694641453,-505.91188564,0.00019593,2]
[359073245,1745694641462,-508.88931414,0.00019593,2]
[359073246,1745694641472,-400.0,0.00019593,2]
[359073247,1745694641481,-400.0,0.00019593,2]
[359073248,1745694641490,-453.96,0.00019593,2]
[359073249,1745694641499,-1644.77,0.00019593,2]
[359073250,1745694641510,-400.0,0.00019593,2]
[359073251,1745694641519,-400.0,0.00019593,2]
[359073252,1745694641528,-651.3,0.00019593,2]
[359073253,1745694641539,-400.0,0.00019593,2]
[359073254,1745694641548,-400.0,0.00019593,2]
[359073255,1745694641557,-400.0,0.00019593,2]
[359073256,1745694641568,-1014.53,0.00019593,2]
[359073257,1745694641577,-501.38749911,0.00019593,2]
[359073258,1745694641587,-48.06856052,0.00019593,2]
[359073259,1745694642114,-363.09143948,0.00019593,2]
[359073260,1745694642125,-663.37,0.00019593,2]
[359073261,1745694642135,-506.3,0.00019593,2]
[359073262,1745694642145,-400.0,0.00019593,2]
[359073263,1745694642155,-1194.77,0.00019593,2]
[359073264,1745694642164,-400.0,0.00019593,2]
[359073265,1745694642174,-400.0,0.00019593,2]
[359073266,1745694642184,-694.54,0.00019593,2]
[359073267,1745694642195,-538.69,0.00019593,2]
[359073268,1745694642205,-426.22,0.00019593,2]
[359073269,1745694642214,-400.0,0.00019593,2]
[359073270,1745694642224,-400.0,0.00019593,2]
[359073271,1745694642236,-400.0,0.00019593,2]
[359073272,1745694642247,-400.0,0.00019593,2]
[359073273,1745694642257,-1072.96,0.00019593,2]
[359073274,1745694642267,-400.0,0.00019593,2]
[359073275,1745694642277,-400.0,0.00019593,2]
[359073276,1745694642287,-400.0,0.00019593,2]
[359073277,1745694642296,-3286.16,0.00019593,2]
[359073278,1745694642306,-400.0,0.00019593,2]
[359073279,1745694642315,-3247.63,0.00019593,2]
[359073280,1745694642324,-400.0,0.00019593,2]
[359073281,1745694642334,-400.0,0.00019593,2]
[359073282,1745694642343,-463.03,0.00019593,2]
[359073283,1745694642354,-626.85,0.00019593,2]
[359073284,1745694642363,-400.0,0.00019593,2]
[359073285,1745694642373,-292.87790255,0.00019593,2]
[359073286,1745694642383,-400.0,0.00019593,2]
[359073287,1745694642393,-579.58,0.00019593,2]
[359073288,1745694642404,-400.0,0.00019593,2]
[359073289,1745694642414,-510.2,0.00019593,2]
[359073290,1745694642424,-548.92,0.00019593,2]
[359073291,1745694642435,-582.65,0.00019593,2]
[359073292,1745694642446,-500.0,0.00019593,2]
[359073293,1745694642455,-400.0,0.00019593,2]
[359073294,1745694642464,-400.0,0.00019593,2]
[359073295,1745694642474,-400.0,0.00019593,2]
[359073296,1745694642483,-400.0,0.00019593,2]
[359073297,1745694642492,-1114.42,0.00019593,2]
[359073298,1745694642501,-538.89,0.00019593,2]
[359073299,1745694642511,-409.22,0.00019593,2]
[359073300,1745694642520,-400.0,0.00019593,2]
[359073301,1745694642530,-400.0,0.00019593,2]
[359073302,1745694642541,-400.0,0.00019593,2]
[359073303,1745694642550,-542.41,0.00019593,2]
[359073304,1745694642559,-767.73,0.00019593,2]
[359073305,1745694642569,-400.0,0.00019593,2]
[359073306,1745694642578,-400.0,0.00019593,2]
[359073307,1745694642587,-400.0,0.00019593,2]
[359073308,1745694642597,-483.51,0.00019593,2]
[359073309,1745694642606,-400.0,0.00019593,2]
[359073310,1745694642616,-594.74,0.00019593,2]
[359073311,1745694642626,-1129.19,0.00019593,2]
[359073312,1745694642635,-422.14,0.00019593,2]
[359073313,1745694642645,-400.0,0.00019593,2]
[359073314,1745694642654,-400.0,0.00019593,2]
[359073315,1745694642663,-251.91403498,0.00019593,2]
[359073316,1745694642673,-103036.8,0.00019593,2]
[359073317,1745694642682,-400.0,0.00019593,2]
[359073318,1745694642691,-410.23,0.00019593,2]
[359073319,1745694642700,-818.38,0.00019593,2]
[359073320,1745694642710,-500.0,0.00019593,2]
[359073321,1745694642719,-1891.47,0.00019593,2]
[359073322,1745694642728,-400.0,0.00019593,2]
[359073323,1745694642738,-842.44,0.00019593,2]
[359073324,1745694642747,-1107.38,0.00019593,2]
[359073325,1745694642757,-10990.37,0.00019593,2]
[359073326,1745694642766,-400.0,0.00019593,2]
[359073327,1745694642775,-409.84,0.00019593,2]
[359073328,1745694642785,-444.74334219,0.00019593,2]
[359073329,1745694642794,-200.0,0.00019593,2]
[359073330,1745694642803,-400.0,0.00019593,2]
[359073331,1745694642812,-400.0,0.00019593,2]
[359073332,1745694642822,-433.33,0.00019593,2]
[359073333,1745694642831,-5838.83,0.00019593,2]
[359073334,1745694642840,-663.5,0.00019593,2]
[359073335,1745694642850,-400.0,0.00019593,2]
[359073336,1745694642859,-400.0,0.00019593,2]
[359073337,1745694642868,-400.0,0.00019593,2]
[359073338,1745694642877,-756.59,0.00019593,2]
[359073339,1745694642887,-2214.79,0.00019593,2]
[359073340,1745694642896,-885.9,0.00019593,2]
[359073341,1745694642905,-977.08,0.00019593,2]
[359073342,1745694642915,-822.66,0.00019593,2]
[359073343,1745694642924,-588.8,0.00019593,2]
[359073344,1745694642933,-400.0,0.00019593,2]
[359073345,1745694642943,-400.0,0.00019593,2]
[359073346,1745694642952,-400.0,0.00019593,2]
[359073347,1745694642961,-659.73,0.00019593,2]
[359073348,1745694642970,-400.0,0.00019593,2]
[359073350,1745694642980,-708.23,0.00019593,2]
[359073351,1745694642989,-400.0,0.00019593,2]
[359073352,1745694642998,-442.83,0.00019593,2]
[359073353,1745694643008,-400.0,0.00019593,2]
[359073354,1745694643016,-715.02,0.00019593,2]
[359073355,1745694643026,-724.34,0.00019593,2]
[359073356,1745694643035,-400.0,0.00019593,2]
[359073357,1745694643044,-400.0,0.00019593,2]
[359073358,1745694643053,-400.0,0.00019593,2]
[359073359,1745694643062,-579.74,0.00019593,2]
[359073360,1745694643072,-751.18,0.00019593,2]
[359073361,1745694643082,-400.0,0.00019593,2]
[359073362,1745694643091,-431.25,0.00019593,2]
[359073363,1745694643100,-400.0,0.00019593,2]
[359073364,1745694643109,-400.0,0.00019593,2]
[359073366,1745694643118,-400.0,0.00019593,2]
[359073368,1745694643127,-740.89,0.00019593,2]
[359073369,1745694643139,-505.69867225,0.00019593,2]
[359073371,1745694643152,-400.0,0.00019593,2]
[359073372,1745694643161,-3661.55,0.00019593,2]
[359073374,1745694643176,-400.0,0.00019593,2]
[359073376,1745694643185,-400.0,0.00019593,2]
[359073377,1745694643194,-671.38,0.00019593,2]
[359073378,1745694643204,-400.0,0.00019593,2]
[359073380,1745694643213,-662.78,0.00019593,2]
[359073382,1745694643222,-530.05,0.00019593,2]
[359073384,1745694643235,-400.0,0.00019593,2]
[359073386,1745694643245,-508.76219902,0.00019593,2]
[359073388,1745694643255,-445.45,0.00019593,2]
[359073389,1745694643264,-546.84,0.00019593,2]
[359073390,1745694643275,-400.0,0.00019593,2]
[359073391,1745694643284,-400.0,0.00019593,2]
[359073392,1745694643293,-400.0,0.00019594,2]
[359073393,1745694643302,-591.11,0.00019594,2]
[359073394,1745694643313,-400.0,0.00019594,2]
[359073396,1745694643323,-443.69,0.00019594,2]
[359073397,1745694643333,-824.93,0.00019594,2]
[359073398,1745694643342,-400.0,0.00019594,2]
[359073399,1745694643351,-519.58,0.00019594,2]
[359073400,1745694643360,-400.0,0.00019594,2]
[359073401,1745694643370,-960.68,0.00019594,2]
[359073402,1745694643380,-400.0,0.00019594,2]
[359073403,1745694643389,-572.53,0.00019594,2]
[359073404,1745694643399,-1682.76,0.00019594,2]
[359073405,1745694643409,-400.0,0.00019594,2]
[359073406,1745694643418,-400.0,0.00019594,2]
[359073407,1745694643428,-400.0,0.00019594,2]
[359073408,1745694643437,-758.31,0.00019594,2]
[359073409,1745694643446,-717.82,0.00019594,2]
[359073410,1745694643456,-929.81,0.00019594,2]
[359073411,1745694643465,-604.73,0.00019594,2]
[359073412,1745694643475,-400.0,0.00019594,2]
[359073413,1745694643484,-400.0,0.00019594,2]
[359073414,1745694643494,-400.0,0.00019594,2]
[359073415,1745694643504,-659.46,0.00019594,2]
[359073416,1745694643513,-400.0,0.00019594,2]
[359073417,1745694643524,-500.0,0.00019594,2]
[359073418,1745694643534,-400.0,0.00019594,2]
[359073419,1745694643545,-400.0,0.00019594,2]
[359073452,1745694643857,-833.22,0.00019594,2]
[359073454,1745694643867,-400.0,0.00019594,2]
[359073455,1745694643877,-628.63,0.00019594,2]
[359073457,1745694643886,-512.12,0.00019594,2]
[359073459,1745694643896,-586.69,0.00019594,2]
[359073461,1745694643906,-514.00705452,0.00019594,2]
[359073463,1745694643915,-400.0,0.00019594,2]
[359073464,1745694643925,-672.34,0.00019594,2]
[359073465,1745694643934,-491.22,0.00019594,2]
[359073466,1745694643944,-716.67,0.00019594,2]
[359073467,1745694643953,-739.82,0.00019594,2]
[359073468,1745694643965,-3823.71,0.00019594,2]
[359073469,1745694643975,-400.0,0.00019594,2]
[359073470,1745694643984,-400.0,0.00019594,2]
[359073471,1745694643994,-658.4,0.00019594,2]
[359073472,1745694644004,-812.28,0.00019594,2]
[359073473,1745694644013,-500.0,0.00019594,2]
[359073474,1745694644023,-400.0,0.00019594,2]
[359073475,1745694644033,-487.29,0.00019594,2]
[359073476,1745694644043,-400.0,0.00019594,2]
[359073477,1745694644064,-789.03,0.00019594,2]
[359073478,1745694644077,-400.0,0.00019594,2]
[359073479,1745694644087,-200.0,0.00019594,2]
[359073480,1745694644097,-400.0,0.00019594,2]
[359073481,1745694644107,-400.0,0.00019594,2]
[359073482,1745694644117,-400.0,0.00019594,2]
[359073483,1745694644127,-400.0,0.00019594,2]
[359073484,1745694644137,-400.0,0.00019594,2]
[359073485,1745694644147,-668.78,0.00019594,2]
[359073486,1745694644157,-400.0,0.00019594,2]
[359073487,1745694644167,-400.0,0.00019594,2]
[359073488,1745694644177,-400.0,0.00019594,2]
[359073489,1745694644187,-400.0,0.00019594,2]
[359073490,1745694644197,-400.0,0.00019594,2]
[359073491,1745694644207,-719.46,0.00019594,2]
[359073492,1745694644218,-906.64,0.00019594,2]
[359073493,1745694644228,-400.0,0.00019594,2]
[359073494,1745694644241,-460.61,0.00019594,2]
[359073495,1745694644251,-400.0,0.00019594,2]
[359073496,1745694644261,-400.0,0.00019594,2]
[359073497,1745694644271,-500.0,0.00019594,2]
[359073498,1745694644281,-400.0,0.00019594,2]
[359073499,1745694644291,-400.0,0.00019594,2]
[359073500,1745694644300,-400.0,0.00019594,2]
[359073501,1745694644310,-480.17,0.00019594,2]
[359073502,1745694644320,-400.0,0.00019594,2]
[359073503,1745694644330,-555.2,0.00019594,2]
[359073504,1745694644340,-406.47,0.00019594,2]
[359073505,1745694644350,-811.25,0.00019594,2]
[359073506,1745694644360,-400.0,0.00019594,2]
[359073507,1745694644369,-4437.08,0.00019594,2]
[359073508,1745694644383,-400.0,0.00019594,2]
[359073509,1745694644398,-400.0,0.00019594,2]
[359073510,1745694644408,-400.0,0.00019594,2]
[359073511,1745694644418,-860.29,0.00019594,2]
[359073512,1745694644428,-400.0,0.00019594,2]
[359073513,1745694644438,-952.43,0.00019594,2]
[359073514,1745694644448,-1072.57,0.00019594,2]
[359073515,1745694644458,-454.46,0.00019594,2]
[359073516,1745694644468,-400.0,0.00019594,2]
[359073517,1745694644479,-742.29,0.00019594,2]
[359073518,1745694644488,-400.0,0.00019594,2]
[359073519,1745694644504,-408.08,0.00019594,2]
[359073520,1745694644515,-486.34,0.00019594,2]
[359073521,1745694644525,-492.36,0.00019594,2]
[359073522,1745694644535,-761.95,0.00019594,2]
[359073523,1745694644547,-400.0,0.00019594,2]
[359073524,1745694644557,-465.09,0.00019594,2]
[359073525,1745694644567,-600.74,0.00019594,2]
[359073526,1745694644578,-915.56,0.00019594,2]
[359073527,1745694644588,-629.97,0.00019595,2]
[359073528,1745694644598,-400.0,0.00019595,2]
[359073529,1745694644608,-400.0,0.00019595,2]
[359073530,1745694644618,-259.7583466,0.00019595,2]
[359073531,1745694644628,-575.41,0.00019595,2]
[359073532,1745694644639,-400.0,0.00019595,2]
[359073533,1745694644649,-400.0,0.00019595,2]
[359073534,1745694644659,-400.0,0.00019595,2]
[359073535,1745694644670,-400.0,0.00019595,2]
[359073536,1745694644680,-400.0,0.00019595,2]
[359073537,1745694644691,-400.0,0.00019595,2]
[359073538,1745694644701,-400.0,0.00019595,2]
[359073539,1745694644711,-400.0,0.00019595,2]
[359073540,1745694644722,-905.41,0.00019595,2]
[359073541,1745694644731,-400.0,0.00019595,2]
[359073542,1745694644742,-400.0,0.00019595,2]
[359073543,1745694644753,-591.38,0.00019595,2]
[359073544,1745694644763,-435.62,0.00019595,2]
[359073545,1745694644774,-400.0,0.00019595,2]
[359073546,1745694644784,-400.0,0.00019595,2]
[359073547,1745694644794,-400.0,0.00019595,2]
[359073548,1745694644804,-352.09425077,0.00019595,2]
[359073549,1745694644814,-400.0,0.00019595,2]
[359073550,1745694644825,-400.0,0.00019595,2]
[359073551,1745694644835,-400.0,0.00019595,2]
[359073552,1745694644845,-466.85,0.00019595,2]
[359073553,1745694644856,-400.0,0.00019595,2]
[359073554,1745694644866,-400.0,0.00019595,2]
[359073555,1745694644876,-400.0,0.00019595,2]
[359073556,1745694644886,-400.0,0.00019595,2]
[359073557,1745694644896,-511.9,0.00019595,2]
[359073558,1745694644906,-400.0,0.00019595,2]
[359073559,1745694644916,-400.0,0.00019595,2]